[Event "Titled Tuesday Blitz June 13 Late 2023"]
[White "Quirke, Jeffrey"]
[Black "marik_spb"]
[WhiteFideId "2013029"]
[WhiteElo "2220"]
[BlackElo "2473"]
[Result "1-0"]
[Round "2"]
[TimeControl "180+2"]
[Date "2023.06.13"]
[WhiteClock "0:00:06"]
[BlackClock "0:00:12"]
[Board "176"]

1. e4 {[%clk 0:02:56]}  c6 {[%clk 0:03:00]} 2. d4 {[%clk 0:02:54]}  d5 {[%clk 0:03:00]} 3. exd5 {[%clk 0:02:54]}  cxd5 {[%clk 0:03:01]} 4. Nf3 {[%clk 0:02:53]}  Nf6 {[%clk 0:02:58]} 5. c3 {[%clk 0:02:54]}  Nc6 {[%clk 0:02:56]} 6. Be3 {[%clk 0:02:50]}  Bg4 {[%clk 0:02:55]} 7. Nbd2 {[%clk 0:02:48]}  e6 {[%clk 0:02:55]} 8. h3 {[%clk 0:02:46]}  Bh5 {[%clk 0:02:55]} 9. g4 {[%clk 0:02:47]}  Bg6 {[%clk 0:02:55]} 10. Nh4 {[%clk 0:02:47]}  Bd6 {[%clk 0:02:54]} 11. Nxg6 {[%clk 0:02:46]}  hxg6 {[%clk 0:02:54]} 12. Qf3 {[%clk 0:02:41]}  Rb8 {[%clk 0:02:42]} 13. O-O-O {[%clk 0:02:39]}  b5 {[%clk 0:02:41]} 14. Kb1 {[%clk 0:02:39]}  b4 {[%clk 0:02:40]} 15. c4 {[%clk 0:02:38]}  Ne7 {[%clk 0:01:19]} 16. Rc1 {[%clk 0:02:12]}  dxc4 {[%clk 0:01:18]} 17. Nxc4 {[%clk 0:02:06]}  Ned5 {[%clk 0:01:14]} 18. Ne5 {[%clk 0:01:46]}  Bxe5 {[%clk 0:00:47]} 19. dxe5 {[%clk 0:01:47]}  Nxe3 {[%clk 0:00:46]} 20. exf6 {[%clk 0:01:37]}  Nxf1 {[%clk 0:00:40]} 21. Rhxf1 {[%clk 0:00:56]}  gxf6 {[%clk 0:00:35]} 22. Rfd1 {[%clk 0:00:55]}  Qb6 {[%clk 0:00:31]} 23. Rc6 {[%clk 0:00:49]}  Qb5 {[%clk 0:00:25]} 24. Rdc1 {[%clk 0:00:42]}  O-O {[%clk 0:00:24]} 25. Qxf6 {[%clk 0:00:40]}  b3 {[%clk 0:00:19]} 26. axb3 {[%clk 0:00:35]}  Qxb3 {[%clk 0:00:17]} 27. h4 {[%clk 0:00:25]}  Rb5 {[%clk 0:00:16]} 28. h5 {[%clk 0:00:20]}  Qd3+ {[%clk 0:00:16]} 29. R6c2 {[%clk 0:00:17]}  Rfb8 {[%clk 0:00:12]} 30. hxg6 {[%clk 0:00:13]}  Rxb2+ {[%clk 0:00:12]} 31. Qxb2 {[%clk 0:00:14]}  Rxb2+ {[%clk 0:00:13]} 32. Kxb2 {[%clk 0:00:14]}  Qxg6 {[%clk 0:00:13]} 33. f3 {[%clk 0:00:11]}  Qf6+ {[%clk 0:00:09]} 34. Rc3 {[%clk 0:00:11]}  a5 {[%clk 0:00:10]} 35. Kb3 {[%clk 0:00:11]}  Qf4 {[%clk 0:00:08]} 36. Rd1 {[%clk 0:00:07]}  Qb4+ {[%clk 0:00:07]} 37. Kc2 {[%clk 0:00:07]}  a4 {[%clk 0:00:08]} 38. Ra1 {[%clk 0:00:05]}  Kg7 {[%clk 0:00:06]} 39. Rca3 {[%clk 0:00:05]}  Qc4+ {[%clk 0:00:06]} 40. Kd2 {[%clk 0:00:06]}  Qf4+ {[%clk 0:00:02]} 41. Ke2 {[%clk 0:00:06]}  Qh2+ {[%clk 0:00:02]} 42. Ke3 {[%clk 0:00:06]}  Qe5+ {[%clk 0:00:02]} 43. Kf2 {[%clk 0:00:07]}  Qb2+ {[%clk 0:00:03]} 44. Kg3 {[%clk 0:00:07]}  Qe5+ {[%clk 0:00:03]} 45. Kg2 {[%clk 0:00:07]}  Qe2+ {[%clk 0:00:03]} 46. Kg3 {[%clk 0:00:08]}  e5 {[%clk 0:00:04]} 47. Rxa4 {[%clk 0:00:07]}  f6 {[%clk 0:00:04]} 48. Ra7+ {[%clk 0:00:05]}  Kg6 {[%clk 0:00:04]} 49. R7a4 {[%clk 0:00:05]}  Qd2 {[%clk 0:00:04]} 50. R1a2 {[%clk 0:00:05]}  Qe3 {[%clk 0:00:04]} 51. Kg2 {[%clk 0:00:05]}  Qe1 {[%clk 0:00:04]} 52. Kh2 {[%clk 0:00:05]}  Qh4+ {[%clk 0:00:03]} 53. Kg2 {[%clk 0:00:05]}  Qe1 {[%clk 0:00:04]} 54. Kh2 {[%clk 0:00:06]}  Qc3 {[%clk 0:00:04]} 55. Kg2 {[%clk 0:00:06]}  Kg5 {[%clk 0:00:05]} 56. Kf2 {[%clk 0:00:06]}  Kh4 {[%clk 0:00:05]} 57. Kg2 {[%clk 0:00:06]}  Qe1 {[%clk 0:00:05]} 58. Rf2 {[%clk 0:00:05]}  Qc1 {[%clk 0:00:04]} 59. Re4 {[%clk 0:00:05]}  Qd1 {[%clk 0:00:03]} 60. Rfe2 {[%clk 0:00:05]}  Qc1 {[%clk 0:00:03]} 61. f4 {[%clk 0:00:05]}  Kxg4 {[%clk 0:00:02]} 62. fxe5+ {[%clk 0:00:05]}  Kf5 {[%clk 0:00:03]} 63. e6 {[%clk 0:00:05]}  Qg5+ {[%clk 0:00:02]} 64. Kf2 {[%clk 0:00:05]}  Qg8 {[%clk 0:00:02]} 65. e7 {[%clk 0:00:05]}  Qe8 {[%clk 0:00:02]} 66. R4e3 {[%clk 0:00:05]}  Kg6 {[%clk 0:00:02]} 67. Rf3 {[%clk 0:00:05]}  Kf7 {[%clk 0:00:02]} 68. Rfe3 {[%clk 0:00:06]}  Kg6 {[%clk 0:00:02]} 69. Rd3 {[%clk 0:00:06]}  Kf7 {[%clk 0:00:03]} 70. Rd8 {[%clk 0:00:06]}  Qxe7 {[%clk 0:00:01]} 71. Rxe7+ {[%clk 0:00:05]}  Kxe7 {[%clk 0:00:02]} 72. Rd2 {[%clk 0:00:05]}  Ke6 {[%clk 0:00:03]} 73. Kf3 {[%clk 0:00:06]}  Kf5 {[%clk 0:00:04]} 74. Rd5+ {[%clk 0:00:06]}  Ke6 {[%clk 0:00:04]} 75. Ra5 {[%clk 0:00:06]}  f5 {[%clk 0:00:05]} 76. Kf4 {[%clk 0:00:07]}  Kd6 {[%clk 0:00:06]} 77. Rxf5 {[%clk 0:00:06]}  Kc6 {[%clk 0:00:07]} 78. Ke4 {[%clk 0:00:07]}  Kc7 {[%clk 0:00:08]} 79. Kd4 {[%clk 0:00:07]}  Kb6 {[%clk 0:00:09]} 80. Kc4 {[%clk 0:00:07]}  Kb7 {[%clk 0:00:09]} 81. Kb5 {[%clk 0:00:07]}  Ka7 {[%clk 0:00:10]} 82. Rf7+ {[%clk 0:00:07]}  Kb8 {[%clk 0:00:11]} 83. Kc6 {[%clk 0:00:06]}  Kc8 {[%clk 0:00:12]} 84. Rf8# {[%clk 0:00:06]} 1-0


[Site "https://www.chess.com"]

[Event "Titled Tuesday Blitz June 13 Late 2023"]
[White "Zaitsev, Alexander"]
[Black "Chemin, Justo Reinaldo"]
[WhiteFideId "4164490"]
[BlackFideId "2101580"]
[WhiteElo "2373"]
[BlackElo "1940"]
[Result "1-0"]
[Round "2"]
[TimeControl "180+2"]
[Date "2023.06.13"]
[WhiteClock "0:00:47"]
[BlackClock "0:00:12"]
[Board "177"]

1. e4 {[%clk 0:03:00]}  e6 {[%clk 0:02:59]} 2. d4 {[%clk 0:03:00]}  d5 {[%clk 0:03:00]} 3. exd5 {[%clk 0:03:01]}  exd5 {[%clk 0:03:00]} 4. Nf3 {[%clk 0:03:02]}  Bd6 {[%clk 0:02:58]} 5. c4 {[%clk 0:03:01]}  dxc4 {[%clk 0:02:53]} 6. Bxc4 {[%clk 0:03:01]}  Nf6 {[%clk 0:02:53]} 7. O-O {[%clk 0:03:00]}  O-O {[%clk 0:02:52]} 8. Nc3 {[%clk 0:02:59]}  c6 {[%clk 0:02:51]} 9. Bg5 {[%clk 0:02:44]}  Bf5 {[%clk 0:02:40]} 10. Ne5 {[%clk 0:02:31]}  Nbd7 {[%clk 0:02:14]} 11. Re1 {[%clk 0:02:24]}  Bg6 {[%clk 0:01:52]} 12. Nxg6 {[%clk 0:01:53]}  hxg6 {[%clk 0:01:51]} 13. Qd3 {[%clk 0:01:54]}  Qc7 {[%clk 0:01:47]} 14. Qxg6 {[%clk 0:01:33]}  b5 {[%clk 0:01:40]} 15. Bb3 {[%clk 0:01:28]}  a5 {[%clk 0:01:26]} 16. Bh6 {[%clk 0:01:16]}  Bxh2+ {[%clk 0:00:52]} 17. Kh1 {[%clk 0:01:15]}  Nh5 {[%clk 0:00:40]} 18. Qxh5 {[%clk 0:01:15]}  gxh6 {[%clk 0:00:38]} 19. Qg6+ {[%clk 0:00:51]}  Kh8 {[%clk 0:00:36]} 20. Qxh6+ {[%clk 0:00:52]}  Kg8 {[%clk 0:00:12]} 21. Re4 {[%clk 0:00:47]} 1-0


[Site "https://www.chess.com"]

[Event "Titled Tuesday Blitz June 13 Late 2023"]
[White "Novikova, Margarita"]
[Black "Erzhanov, Arman"]
[WhiteFideId "14109689"]
[BlackFideId "4138821"]
[WhiteElo "2013"]
[BlackElo "2138"]
[Result "0-1"]
[Round "2"]
[TimeControl "180+2"]
[Date "2023.06.13"]
[WhiteClock "0:00:07"]
[BlackClock "0:00:16"]
[Board "181"]

1. e4 {[%clk 0:03:00]}  d6 {[%clk 0:02:56]} 2. d4 {[%clk 0:03:00]}  Nf6 {[%clk 0:02:57]} 3. Nc3 {[%clk 0:02:56]}  e5 {[%clk 0:02:57]} 4. dxe5 {[%clk 0:02:55]}  dxe5 {[%clk 0:02:56]} 5. Qxd8+ {[%clk 0:02:55]}  Kxd8 {[%clk 0:02:57]} 6. Bg5 {[%clk 0:02:55]}  c6 {[%clk 0:02:53]} 7. O-O-O+ {[%clk 0:02:54]}  Ke8 {[%clk 0:02:52]} 8. f3 {[%clk 0:02:53]}  Be6 {[%clk 0:02:51]} 9. Kb1 {[%clk 0:02:52]}  Nbd7 {[%clk 0:02:51]} 10. Nge2 {[%clk 0:02:44]}  b5 {[%clk 0:02:50]} 11. Nc1 {[%clk 0:02:42]}  a5 {[%clk 0:02:49]} 12. N3e2 {[%clk 0:02:27]}  Bc5 {[%clk 0:02:35]} 13. Nd3 {[%clk 0:02:24]}  Bb6 {[%clk 0:02:35]} 14. h3 {[%clk 0:02:18]}  a4 {[%clk 0:02:34]} 15. a3 {[%clk 0:02:18]}  h6 {[%clk 0:02:31]} 16. Bd2 {[%clk 0:02:14]}  Bc7 {[%clk 0:02:22]} 17. Bb4 {[%clk 0:02:12]}  Nb6 {[%clk 0:02:17]} 18. Nc5 {[%clk 0:02:08]}  Bc8 {[%clk 0:02:17]} 19. Nc3 {[%clk 0:01:55]}  Nfd7 {[%clk 0:02:16]} 20. Ne2 {[%clk 0:01:47]}  Nxc5 {[%clk 0:02:05]} 21. Bxc5 {[%clk 0:01:48]}  Be6 {[%clk 0:01:51]} 22. Nc3 {[%clk 0:01:40]}  f6 {[%clk 0:01:37]} 23. Be2 {[%clk 0:01:19]}  Rd8 {[%clk 0:01:25]} 24. Rxd8+ {[%clk 0:01:16]}  Kxd8 {[%clk 0:01:18]} 25. Rd1+ {[%clk 0:01:14]}  Kc8 {[%clk 0:01:18]} 26. Na2 {[%clk 0:01:06]}  Nd7 {[%clk 0:01:17]} 27. Be3 {[%clk 0:01:01]}  Bb6 {[%clk 0:01:05]} 28. Bxb6 {[%clk 0:00:56]}  Nxb6 {[%clk 0:01:05]} 29. Nb4 {[%clk 0:00:55]}  Kc7 {[%clk 0:01:03]} 30. Na6+ {[%clk 0:00:52]}  Kc8 {[%clk 0:00:56]} 31. Nc5 {[%clk 0:00:51]}  Bf7 {[%clk 0:00:52]} 32. g3 {[%clk 0:00:48]}  Rd8 {[%clk 0:00:52]} 33. f4 {[%clk 0:00:45]}  Rxd1+ {[%clk 0:00:50]} 34. Bxd1 {[%clk 0:00:46]}  Nd7 {[%clk 0:00:46]} 35. Bg4 {[%clk 0:00:43]}  Be8 {[%clk 0:00:45]} 36. Ne6 {[%clk 0:00:44]}  g5 {[%clk 0:00:44]} 37. fxe5 {[%clk 0:00:38]}  Nxe5 {[%clk 0:00:42]} 38. Bf5 {[%clk 0:00:36]}  Bd7 {[%clk 0:00:40]} 39. Ng7 {[%clk 0:00:36]}  Bxf5 {[%clk 0:00:39]} 40. Nxf5 {[%clk 0:00:37]}  h5 {[%clk 0:00:39]} 41. h4 {[%clk 0:00:34]}  gxh4 {[%clk 0:00:39]} 42. gxh4 {[%clk 0:00:35]}  Kd7 {[%clk 0:00:39]} 43. Kc1 {[%clk 0:00:35]}  Ke6 {[%clk 0:00:38]} 44. Kd2 {[%clk 0:00:34]}  Ng6 {[%clk 0:00:36]} 45. Kc3 {[%clk 0:00:34]}  Ke5 {[%clk 0:00:35]} 46. Kd3 {[%clk 0:00:32]}  Nf4+ {[%clk 0:00:34]} 47. Ke3 {[%clk 0:00:32]}  Ne6 {[%clk 0:00:33]} 48. c3 {[%clk 0:00:31]}  Nc5 {[%clk 0:00:31]} 49. Ng7 {[%clk 0:00:31]}  Nxe4 {[%clk 0:00:30]} 50. Nxh5 {[%clk 0:00:31]}  Nd6 {[%clk 0:00:31]} 51. Kf3 {[%clk 0:00:27]}  Nc4 {[%clk 0:00:31]} 52. Nf4 {[%clk 0:00:22]}  Nxb2 {[%clk 0:00:28]} 53. h5 {[%clk 0:00:22]}  f5 {[%clk 0:00:29]} 54. h6 {[%clk 0:00:21]}  Kf6 {[%clk 0:00:29]} 55. Ne6 {[%clk 0:00:20]}  Nc4 {[%clk 0:00:27]} 56. Nd4 {[%clk 0:00:19]}  Nxa3 {[%clk 0:00:24]} 57. Nxc6 {[%clk 0:00:19]}  Nb1 {[%clk 0:00:24]} 58. c4 {[%clk 0:00:17]}  bxc4 {[%clk 0:00:16]} 59. Nb4 {[%clk 0:00:17]}  a3 {[%clk 0:00:15]} 60. Ke3 {[%clk 0:00:16]}  Kg6 {[%clk 0:00:16]} 61. Kf4 {[%clk 0:00:15]}  c3 {[%clk 0:00:15]} 62. Nc2 {[%clk 0:00:14]}  a2 {[%clk 0:00:14]} 63. h7 {[%clk 0:00:13]}  Kxh7 {[%clk 0:00:14]} 64. Kxf5 {[%clk 0:00:14]}  Nd2 {[%clk 0:00:15]} 65. Kf4 {[%clk 0:00:11]}  Nb3 {[%clk 0:00:15]} 66. Ke3 {[%clk 0:00:09]}  a1=Q {[%clk 0:00:15]} 67. Nxa1 {[%clk 0:00:09]}  Nxa1 {[%clk 0:00:15]} 68. Kd3 {[%clk 0:00:10]}  c2 {[%clk 0:00:16]} 69. Kd2 {[%clk 0:00:10]}  Kg6 {[%clk 0:00:17]} 70. Kc1 {[%clk 0:00:11]}  Kf5 {[%clk 0:00:18]} 71. Kb2 {[%clk 0:00:11]}  Ke4 {[%clk 0:00:18]} 72. Kc1 {[%clk 0:00:11]}  Kd3 {[%clk 0:00:18]} 73. Kb2 {[%clk 0:00:10]}  Kd2 {[%clk 0:00:19]} 74. Ka2 {[%clk 0:00:10]}  Nb3 {[%clk 0:00:19]} 75. Kb2 {[%clk 0:00:07]}  c1=Q+ {[%clk 0:00:16]} 76. Kxb3 {[%clk 0:00:07]} 0-1


[Site "https://www.chess.com"]

[Event "Titled Tuesday Blitz June 13 Late 2023"]
[White "Fuentes Godoy, Lilia Ivonne"]
[Black "Przybylski, Wojciech"]
[WhiteFideId "5104130"]
[BlackFideId "1117599"]
[WhiteElo "2024"]
[BlackElo "2228"]
[Result "0-1"]
[Round "2"]
[TimeControl "180+2"]
[Date "2023.06.13"]
[WhiteClock "0:00:03"]
[BlackClock "0:00:12"]
[Board "182"]

1. d4 {[%clk 0:03:00]}  Nf6 {[%clk 0:02:57]} 2. c4 {[%clk 0:02:56]}  e6 {[%clk 0:02:56]} 3. Nf3 {[%clk 0:02:56]}  b6 {[%clk 0:02:55]} 4. g3 {[%clk 0:02:52]}  Ba6 {[%clk 0:02:55]} 5. Qa4 {[%clk 0:02:49]}  Bb7 {[%clk 0:02:53]} 6. Bg2 {[%clk 0:02:49]}  c5 {[%clk 0:02:52]} 7. O-O {[%clk 0:02:47]}  Na6 {[%clk 0:02:49]} 8. a3 {[%clk 0:02:31]}  cxd4 {[%clk 0:02:45]} 9. Nxd4 {[%clk 0:02:23]}  Nc5 {[%clk 0:02:39]} 10. Qc2 {[%clk 0:02:21]}  Bxg2 {[%clk 0:02:37]} 11. Kxg2 {[%clk 0:02:21]}  d5 {[%clk 0:02:34]} 12. b4 {[%clk 0:02:13]}  dxc4 {[%clk 0:02:28]} 13. Bb2 {[%clk 0:02:05]}  Qd5+ {[%clk 0:02:23]} 14. f3 {[%clk 0:02:03]}  Nb3 {[%clk 0:02:23]} 15. Nxb3 {[%clk 0:01:33]}  cxb3 {[%clk 0:02:24]} 16. Qd2 {[%clk 0:01:33]}  Rd8 {[%clk 0:02:18]} 17. Rd1 {[%clk 0:01:29]}  Be7 {[%clk 0:02:12]} 18. Qxd5 {[%clk 0:01:27]}  Nxd5 {[%clk 0:02:06]} 19. Kf2 {[%clk 0:01:27]}  a5 {[%clk 0:02:01]} 20. e4 {[%clk 0:01:24]}  Bf6 {[%clk 0:01:38]} 21. Bxf6 {[%clk 0:00:52]}  Nxf6 {[%clk 0:01:39]} 22. Nc3 {[%clk 0:00:52]}  Ke7 {[%clk 0:01:34]} 23. Rab1 {[%clk 0:00:42]}  Rxd1 {[%clk 0:01:27]} 24. Nxd1 {[%clk 0:00:43]}  a4 {[%clk 0:01:15]} 25. Nc3 {[%clk 0:00:43]}  b5 {[%clk 0:01:02]} 26. Nxb5 {[%clk 0:00:42]}  Rc8 {[%clk 0:01:01]} 27. Ke3 {[%clk 0:00:41]}  Nd7 {[%clk 0:00:55]} 28. Kd4 {[%clk 0:00:25]}  Rc2 {[%clk 0:00:38]} 29. Nc3 {[%clk 0:00:25]}  Nb6 {[%clk 0:00:37]} 30. Kd3 {[%clk 0:00:18]}  Rxh2 {[%clk 0:00:31]} 31. b5 {[%clk 0:00:14]}  Kd6 {[%clk 0:00:29]} 32. f4 {[%clk 0:00:13]}  Rc2 {[%clk 0:00:25]} 33. Nxa4 {[%clk 0:00:10]}  Nxa4 {[%clk 0:00:23]} 34. Rxb3 {[%clk 0:00:11]}  Rc8 {[%clk 0:00:20]} 35. Rb4 {[%clk 0:00:11]}  Nb6 {[%clk 0:00:19]} 36. Rb2 {[%clk 0:00:03]}  Ra8 {[%clk 0:00:18]} 37. e5+ {[%clk 0:00:01]}  Kc5 {[%clk 0:00:17]} 38. Rb3 {[%clk 0:00:01]}  Ra4 {[%clk 0:00:16]} 39. Rc3+ {[%clk 0:00:02]}  Kxb5 {[%clk 0:00:15]} 40. Rc7 {[%clk 0:00:02]}  Rxa3+ {[%clk 0:00:15]} 41. Ke2 {[%clk 0:00:02]}  Rxg3 {[%clk 0:00:13]} 42. Rxf7 {[%clk 0:00:02]}  h5 {[%clk 0:00:13]} 43. Kf2 {[%clk 0:00:03]}  h4 {[%clk 0:00:13]} 44. Re7 {[%clk 0:00:02]}  Nd5 {[%clk 0:00:13]} 45. Rxe6 {[%clk 0:00:03]}  Nxf4 {[%clk 0:00:14]} 46. Re8 {[%clk 0:00:02]}  Kc6 {[%clk 0:00:13]} 47. Rh8 {[%clk 0:00:03]}  Nd3+ {[%clk 0:00:12]} 48. Kf1 {[%clk 0:00:02]}  g5 {[%clk 0:00:12]} 49. Rh6+ {[%clk 0:00:02]}  Kd5 {[%clk 0:00:11]} 50. e6 {[%clk 0:00:03]}  Kd6 {[%clk 0:00:11]} 51. e7+ {[%clk 0:00:03]}  Kxe7 {[%clk 0:00:12]} 52. Rg6 {[%clk 0:00:04]}  Nf4 {[%clk 0:00:12]} 53. Rg7+ {[%clk 0:00:03]}  Kf6 {[%clk 0:00:12]} 0-1


[Site "https://www.chess.com"]

[Event "Titled Tuesday Blitz June 13 Late 2023"]
[White "Sariego Figueredo, Wilfredo"]
[Black "Dudzinski, Pawel"]
[WhiteFideId "3500080"]
[BlackFideId "1117890"]
[WhiteElo "2309"]
[BlackElo "2099"]
[Result "0-1"]
[Round "2"]
[TimeControl "180+2"]
[Date "2023.06.13"]
[WhiteClock "0:01:58"]
[BlackClock "0:01:27"]
[Board "185"]

1. d4 {[%clk 0:02:59]}  d5 {[%clk 0:02:50]} 2. Bf4 {[%clk 0:02:59]}  c6 {[%clk 0:02:50]} 3. e3 {[%clk 0:02:59]}  Qb6 {[%clk 0:02:41]} 4. b3 {[%clk 0:02:51]}  Nf6 {[%clk 0:02:41]} 5. Nd2 {[%clk 0:02:52]}  g6 {[%clk 0:02:40]} 6. c4 {[%clk 0:02:52]}  Bg7 {[%clk 0:02:39]} 7. Ngf3 {[%clk 0:02:49]}  Nh5 {[%clk 0:02:38]} 8. Bg5 {[%clk 0:02:49]}  h6 {[%clk 0:02:38]} 9. Bh4 {[%clk 0:02:49]}  Bg4 {[%clk 0:02:38]} 10. h3 {[%clk 0:02:49]}  Bxf3 {[%clk 0:02:38]} 11. Nxf3 {[%clk 0:02:49]}  g5 {[%clk 0:02:35]} 12. Bg3 {[%clk 0:02:46]}  Nxg3 {[%clk 0:02:34]} 13. fxg3 {[%clk 0:02:46]}  Nd7 {[%clk 0:02:33]} 14. Bd3 {[%clk 0:02:45]}  e5 {[%clk 0:02:31]} 15. cxd5 {[%clk 0:02:41]}  cxd5 {[%clk 0:02:29]} 16. dxe5 {[%clk 0:02:39]}  Qxe3+ {[%clk 0:02:19]} 17. Qe2 {[%clk 0:02:38]}  Qxe2+ {[%clk 0:02:20]} 18. Kxe2 {[%clk 0:02:39]}  Nxe5 {[%clk 0:02:20]} 19. Nxe5 {[%clk 0:02:38]}  Bxe5 {[%clk 0:02:21]} 20. g4 {[%clk 0:02:38]}  Bxa1 {[%clk 0:02:20]} 21. Rxa1 {[%clk 0:02:37]}  Kd7 {[%clk 0:02:17]} 22. Rf1 {[%clk 0:02:38]}  Rhe8+ {[%clk 0:02:14]} 23. Kd2 {[%clk 0:02:38]}  Re7 {[%clk 0:02:15]} 24. Rf6 {[%clk 0:02:36]}  Rh8 {[%clk 0:02:14]} 25. Rf5 {[%clk 0:02:34]}  Kd6 {[%clk 0:02:12]} 26. Rf6+ {[%clk 0:02:34]}  Ke5 {[%clk 0:02:10]} 27. Rf5+ {[%clk 0:02:33]}  Kd4 {[%clk 0:02:10]} 28. Rf6 {[%clk 0:02:29]}  Re3 {[%clk 0:02:04]} 29. Bf1 {[%clk 0:02:29]}  Rhe8 {[%clk 0:01:56]} 30. Rxf7 {[%clk 0:02:29]}  R8e7 {[%clk 0:01:54]} 31. Rf6 {[%clk 0:02:29]}  R3e6 {[%clk 0:01:54]} 32. Rf5 {[%clk 0:02:28]}  Re1 {[%clk 0:01:47]} 33. Rf6 {[%clk 0:02:26]}  Ra1 {[%clk 0:01:45]} 34. Bb5 {[%clk 0:02:10]}  Rxa2+ {[%clk 0:01:41]} 35. Kd1 {[%clk 0:02:08]}  Rxg2 {[%clk 0:01:38]} 36. Rxh6 {[%clk 0:02:07]}  a6 {[%clk 0:01:35]} 37. Bf1 {[%clk 0:02:04]}  Rf2 {[%clk 0:01:34]} 38. Bxa6 {[%clk 0:01:57]}  bxa6 {[%clk 0:01:33]} 39. Rxa6 {[%clk 0:01:58]}  Ree2 {[%clk 0:01:27]} 40. Ra4+ {[%clk 0:01:58]}  Ke5 {[%clk 0:01:27]} 0-1


[Site "https://www.chess.com"]

[Event "Titled Tuesday Blitz June 13 Late 2023"]
[White "ArchibaldCerveza29"]
[Black "Djordjevic, Dejan N"]
[BlackFideId "913316"]
[WhiteElo "2454"]
[BlackElo "2261"]
[Result "0-1"]
[Round "2"]
[TimeControl "180+2"]
[Date "2023.06.13"]
[WhiteClock "0:00:02"]
[BlackClock "0:00:32"]
[Board "186"]

1. e4 {[%clk 0:03:00]}  c5 {[%clk 0:02:59]} 2. c3 {[%clk 0:02:59]}  d5 {[%clk 0:02:58]} 3. exd5 {[%clk 0:03:00]}  Qxd5 {[%clk 0:02:58]} 4. d4 {[%clk 0:03:00]}  Nc6 {[%clk 0:02:57]} 5. Nf3 {[%clk 0:03:00]}  Nf6 {[%clk 0:02:55]} 6. Be3 {[%clk 0:02:54]}  cxd4 {[%clk 0:02:55]} 7. cxd4 {[%clk 0:02:55]}  e6 {[%clk 0:02:55]} 8. Nc3 {[%clk 0:02:55]}  Qd8 {[%clk 0:02:54]} 9. Bd3 {[%clk 0:02:54]}  a6 {[%clk 0:02:54]} 10. Rc1 {[%clk 0:02:45]}  Be7 {[%clk 0:02:52]} 11. O-O {[%clk 0:02:44]}  O-O {[%clk 0:02:52]} 12. Re1 {[%clk 0:02:44]}  Nb4 {[%clk 0:02:49]} 13. Bb1 {[%clk 0:02:42]}  b5 {[%clk 0:02:48]} 14. Ne5 {[%clk 0:02:38]}  Bb7 {[%clk 0:02:46]} 15. a3 {[%clk 0:02:23]}  Nbd5 {[%clk 0:02:45]} 16. Qd3 {[%clk 0:02:24]}  Rc8 {[%clk 0:02:36]} 17. Bg5 {[%clk 0:02:10]}  g6 {[%clk 0:02:34]} 18. Qh3 {[%clk 0:01:58]}  Nxc3 {[%clk 0:02:24]} 19. bxc3 {[%clk 0:01:55]}  Qd5 {[%clk 0:02:23]} 20. Bxf6 {[%clk 0:01:25]}  Bxf6 {[%clk 0:02:22]} 21. Be4 {[%clk 0:01:25]}  Qxe4 {[%clk 0:02:22]} 22. Rxe4 {[%clk 0:01:26]}  Bxe4 {[%clk 0:02:22]} 23. Nd7 {[%clk 0:01:17]}  Bg7 {[%clk 0:02:16]} 24. Nxf8 {[%clk 0:01:15]}  Bxf8 {[%clk 0:02:16]} 25. Ra1 {[%clk 0:01:02]}  Bd5 {[%clk 0:02:12]} 26. Qg3 {[%clk 0:01:01]}  a5 {[%clk 0:02:06]} 27. Qd3 {[%clk 0:00:59]}  Rc4 {[%clk 0:02:03]} 28. h4 {[%clk 0:00:54]}  h5 {[%clk 0:02:02]} 29. Rb1 {[%clk 0:00:49]}  Bc6 {[%clk 0:01:51]} 30. f3 {[%clk 0:00:38]}  Bxa3 {[%clk 0:01:47]} 31. Ra1 {[%clk 0:00:21]}  Bb2 {[%clk 0:01:47]} 32. Rxa5 {[%clk 0:00:22]}  Bxc3 {[%clk 0:01:34]} 33. Ra6 {[%clk 0:00:22]}  Bxd4+ {[%clk 0:01:34]} 34. Kh2 {[%clk 0:00:20]}  Bd5 {[%clk 0:01:32]} 35. Rd6 {[%clk 0:00:19]}  Be5+ {[%clk 0:01:31]} 36. g3 {[%clk 0:00:19]}  Bxd6 {[%clk 0:01:31]} 37. Qe3 {[%clk 0:00:18]}  Rxh4+ {[%clk 0:01:30]} 38. Kg2 {[%clk 0:00:18]}  Rg4 {[%clk 0:01:19]} 39. Qb6 {[%clk 0:00:13]}  Rxg3+ {[%clk 0:01:18]} 40. Kf2 {[%clk 0:00:14]}  Rxf3+ {[%clk 0:01:17]} 41. Ke2 {[%clk 0:00:15]}  Bg3 {[%clk 0:01:12]} 42. Qd8+ {[%clk 0:00:13]}  Kg7 {[%clk 0:01:10]} 43. Qc8 {[%clk 0:00:13]}  b4 {[%clk 0:01:09]} 44. Qc1 {[%clk 0:00:10]}  Be5 {[%clk 0:01:03]} 45. Qc8 {[%clk 0:00:09]}  b3 {[%clk 0:01:02]} 46. Qc1 {[%clk 0:00:08]}  b2 {[%clk 0:01:02]} 47. Qb1 {[%clk 0:00:08]}  Ra3 {[%clk 0:00:58]} 48. Kf2 {[%clk 0:00:08]}  Ra1 {[%clk 0:00:58]} 49. Qd3 {[%clk 0:00:03]}  b1=Q {[%clk 0:00:56]} 50. Qe4 {[%clk 0:00:02]}  Qf1+ {[%clk 0:00:52]} 51. Ke3 {[%clk 0:00:02]}  Ra3+ {[%clk 0:00:45]} 52. Kd2 {[%clk 0:00:03]}  Bf4+ {[%clk 0:00:35]} 53. Kc2 {[%clk 0:00:02]}  Qc1# {[%clk 0:00:32]} 0-1


[Site "https://www.chess.com"]

[Event "Titled Tuesday Blitz June 13 Late 2023"]
[White "LionKing2367890"]
[Black "Papayan, Oleg"]
[BlackFideId "4193911"]
[WhiteElo "2147"]
[BlackElo "2167"]
[Result "0-1"]
[Round "2"]
[TimeControl "180+2"]
[Date "2023.06.13"]
[WhiteClock "0:02:15"]
[BlackClock "0:02:20"]
[Board "187"]

1. e4 {[%clk 0:03:00]}  e5 {[%clk 0:03:00]} 2. Nf3 {[%clk 0:02:59]}  Nc6 {[%clk 0:03:00]} 3. Bc4 {[%clk 0:02:59]}  Nf6 {[%clk 0:03:01]} 4. d3 {[%clk 0:02:59]}  Bc5 {[%clk 0:03:01]} 5. c3 {[%clk 0:02:59]}  O-O {[%clk 0:03:01]} 6. O-O {[%clk 0:02:58]}  a5 {[%clk 0:03:01]} 7. a4 {[%clk 0:02:57]}  d6 {[%clk 0:03:01]} 8. h3 {[%clk 0:02:56]}  Be6 {[%clk 0:03:02]} 9. Nbd2 {[%clk 0:02:54]}  h6 {[%clk 0:03:00]} 10. Bb3 {[%clk 0:02:54]}  Re8 {[%clk 0:02:58]} 11. Bc2 {[%clk 0:02:54]}  Ba7 {[%clk 0:02:52]} 12. Re1 {[%clk 0:02:49]}  Ne7 {[%clk 0:02:49]} 13. Nf1 {[%clk 0:02:47]}  Ng6 {[%clk 0:02:49]} 14. Be3 {[%clk 0:02:47]}  Qd7 {[%clk 0:02:41]} 15. Ng3 {[%clk 0:02:45]}  Bxh3 {[%clk 0:02:26]} 16. gxh3 {[%clk 0:02:32]}  Qxh3 {[%clk 0:02:27]} 17. Nh2 {[%clk 0:02:15]}  Nh4 {[%clk 0:02:20]} 0-1


[Site "https://www.chess.com"]